bitfinex-derivatives/quotes_SOLF0:USTF0_20251006
["timestamp","ask_amount","ask_price","bid_price","bid_amount"]
[1759717222354,7.53,230.8,230.71,7.31]
[1759717222546,1.24946802,230.81,230.7,3.8999]
[1759717222547,1.24946802,230.85,230.73,8.55946802]
[1759717222750,7.47,230.86,230.76,1.24946802]
[1759717222950,7.47,230.86,230.77,7.31]
[1759717224854,7.47,230.86,230.77,20.47368851]
[1759717225055,7.47,230.86,230.77,7.31]
[1759717225654,7.47,230.86,230.75,1.24946802]
[1759717225655,7.47,230.84,230.74,7.31]
[1759717228859,7.47,230.84,230.74,20.54815528]
[1759717231161,7.47,230.84,230.74,24.44725528]
[1759717232558,1.24946802,230.82,230.74,20.54815528]
[1759717232761,1.24946802,230.79,230.7,7.31]
[1759717233762,7.47,230.81,230.7,8.55946802]
[1759717234256,7.47,230.81,230.72,7.55]
[1759717234765,8.71946802,230.81,230.73,3.8994]
[1759717234959,8.71946802,230.81,230.72,20.76720916]
[1759717237861,8.71946802,230.81,230.72,24.66660916]
[1759717240368,8.71946802,230.81,230.72,20.76720916]
[1759717242065,8.71946802,230.81,230.73,7.55]
[1759717244767,4.83437105,230.93,230.73,7.55]
[1759717245072,7.65,230.88,230.77,7.55]
[1759717245773,7.65,230.88,230.81,11.4481]
[1759717246274,7.65,230.88,230.81,7.55]
[1759717246467,1.24946802,230.86,230.75,7.55]
[1759717247264,1.24946802,230.86,230.76,1.24946802]
[1759717247467,1.24946802,230.86,230.77,7.55]
[1759717247664,7.84,230.85,230.77,7.55]
[1759717251272,1.24946802,230.86,230.77,7.55]
[1759717251474,7.84,230.89,230.8,7.88]
[1759717251676,1.24946802,230.92,230.8,7.88]
[1759717251876,1.24946802,230.92,230.85,7.88]
[1759717252175,7.84,230.85,230.76,7.88]
[1759717252682,9.08946802,230.85,230.76,7.88]
[1759717255277,9.08946802,230.85,230.78,7.88]
[1759717255478,1.24946802,230.88,230.78,7.88]
[1759717256083,4.26342607,230.88,230.78,7.88]
[1759717256388,1.24946802,230.91,230.81,7.88]
[1759717257573,1.24946802,230.91,230.81,11.7781]
[1759717258073,1.24946802,230.91,230.82,3.8978]
[1759717258274,1.24946802,230.91,230.83,7.88]
[1759717259880,1.24946802,230.91,230.83,11.7776]
[1759717260080,3.01374526,230.92,230.8,1.24946802]
[1759717260286,13.20686654,230.98,230.87,3.8969]
[1759717260488,3.01374712,230.97,230.88,7.88]
[1759717260686,3.01374712,230.96,230.88,7.88]
[1759717260881,7.84,230.96,230.88,7.88]
[1759717261083,7.84,230.96,230.71,70.29580849]
[1759717261084,7.84,230.91,230.83,7.88]
[1759717261283,1.24946802,230.89,230.83,7.88]
[1759717263082,7.84,230.91,230.69,91.10100849]
[1759717263083,4.95980681,230.9,230.73,7.88]
[1759717263386,1.95134209,230.86,230.73,7.88]
[1759717263585,7.84,230.85,230.73,7.88]
[1759717263889,7.84,230.83,230.73,7.88]
[1759717264094,7.84,230.81,230.73,7.88]
[1759717265080,7.84,230.81,230.74,3.8993]
[1759717266588,7.84,230.81,230.73,7.88]
[1759717272899,7.84,230.81,230.73,11.7793]
[1759717273300,7.84,230.81,230.73,7.88]
[1759717282600,1.95134209,230.82,230.67,15.05505637]
[1759717282805,10.78091594,230.81,230.67,7.83]
[1759717283000,7.77,230.79,230.67,7.83]
[1759717283304,7.77,230.77,230.67,20.96039406]
[1759717283502,7.77,230.77,230.67,7.83]
[1759717283702,7.77,230.77,230.67,11.7304]
[1759717286409,17.36,230.85,230.67,7.83]
[1759717286410,7.77,230.76,230.67,7.83]
[1759717287406,7.77,230.8,230.71,3.8996]
[1759717287606,315.28,230.93,230.72,7.83]
[1759717287607,7.77,230.88,230.72,7.83]
[1759717287801,7.77,230.86,230.72,7.83]
[1759717288008,3.00888072,230.85,230.72,7.83]
[1759717288210,7.77,230.84,230.72,11.7295]
[1759717288410,3.00888072,230.83,230.72,11.7295]
[1759717288912,7.77,230.82,230.72,11.7295]
[1759717289915,7.77,230.8,230.68,7.83]
[1759717291816,7.77,230.8,230.68,11.7301]
[1759717292215,7.77,230.8,230.7,3.8999]
[1759717292414,7.77,230.8,230.71,7.83]
[1759717294113,57.84,230.85,230.71,7.83]
[1759717294314,3.00657753,230.84,230.71,7.83]
[1759717294720,3.00657753,230.84,230.72,3.8996]
[1759717294919,7.4,230.83,230.72,3.8996]
[1759717295321,9.35134209,230.83,230.71,7.83]
[1759717296523,3.00657681,230.82,230.71,7.83]
[1759717296719,7.4,230.81,230.71,7.83]
[1759717297115,7.4,230.81,230.72,3.8996]
[1759717297322,7.4,230.81,230.73,7.99]
[1759717303428,7.4,230.8,230.69,7.99]
[1759717303628,7.4,230.78,230.69,7.99]
[1759717303824,7.4,230.76,230.67,12.95952712]
[1759717304032,7.4,230.76,230.65,7.99]
[1759717304332,11.2989,230.76,230.65,7.99]
[1759717305031,7.4,230.76,230.65,11.8906]
[1759717305229,7.4,230.76,230.65,24.89991836]
[1759717307225,7.4,230.76,230.68,7.99]
[1759717307530,3.01078928,230.75,230.68,7.99]
[1759717308926,7.95,230.74,230.68,7.99]
[1759717309121,7.95,230.82,230.69,60.6682]
[1759717309328,7.95,230.82,230.71,7.56]
[1759717310429,9.90134209,230.8,230.71,7.56]
[1759717311138,3.00980234,230.79,230.71,7.56]
[1759717312232,9.90134209,230.8,230.71,7.56]
[1759717312728,7.95,230.8,230.71,7.56]
[1759717314435,7.95,230.8,230.72,7.56]
[1759717314635,7.95,230.84,230.72,7.56]
[1759717314930,3.01136808,230.83,230.72,7.56]
[1759717315635,3.01136808,230.83,230.72,11.4595]
[1759717316131,3.01136808,230.83,230.73,7.56]
[1759717317543,7.95,230.82,230.73,7.56]
[1759717321138,4.15775587,230.87,230.75,1.95134209]
[1759717321340,3.01176829,230.89,230.76,7.56]
[1759717321643,3.01176829,230.88,230.76,7.56]
[1759717321844,3.01176829,230.89,230.8,7.56]
[1759717322042,3.01176829,230.88,230.8,7.56]
[1759717322343,3.01176829,230.89,230.8,7.56]
[1759717322642,3.01176829,230.88,230.8,7.56]
[1759717322835,3.01176829,230.89,230.8,7.56]
[1759717323031,3.01176829,230.88,230.8,7.56]
[1759717323234,7.95,230.9,230.8,7.56]
[1759717323235,3.01176829,230.89,230.8,7.56]
[1759717324038,1.2484954,230.97,230.85,1.2484954]
[1759717324244,3.00875277,230.97,230.88,1.2484954]
[1759717324438,3.00875277,230.97,230.89,7.56]
[1759717324639,3.00875277,230.97,230.89,20.63761054]
[1759717325143,3.00875277,230.97,230.89,24.53421054]
[1759717325342,1.2484954,231.0,230.9,7.56]
[1759717325645,1.2484954,231.0,230.91,3.8963]
[1759717326036,7.95,230.99,230.9,7.56]
[1759717328145,7.95,230.99,230.9,11.4565]
[1759717329246,7.95,230.99,230.9,7.56]
[1759717330545,1.2484954,231.01,230.9,7.56]
[1759717330546,1.2484954,231.01,230.9,8.8084954]
[1759717330741,1.2484954,231.01,230.89,12.75573404]
[1759717330742,7.95,231.02,230.93,1.2484954]
[1759717330942,7.95,231.02,230.94,7.56]
[1759717332648,7.95,230.99,230.89,20.57635163]
[1759717332840,1.2484954,230.97,230.89,20.57635163]
[1759717334545,1.2484954,230.97,230.9,7.56]
[1759717335150,1.2484954,231.0,230.92,7.56]
[1759717335656,7.95,231.02,230.93,3.8961]
[1759717336247,7.95,231.02,230.92,7.56]
[1759717337452,7.95,231.02,230.9,7.56]
[1759717338158,7.95,231.02,230.89,74.88074703]
[1759717338159,7.95,231.02,230.94,7.53]
[1759717342163,1.2484954,231.0,230.94,7.53]
[1759717343056,1.2484954,230.97,230.9,7.53]
[1759717345266,7.68,230.98,230.9,7.53]
[1759717345466,1.2484954,230.97,230.9,7.53]
[1759717348470,1.2484954,230.97,230.91,3.8962]
[1759717349270,1.2484954,230.97,230.91,7.53]
[1759717349866,1.2484954,230.94,230.89,12.93159445]
[1759717350058,7.68,230.93,230.87,7.53]
[1759717351071,7.68,230.93,230.87,20.38535278]
[1759717351571,7.68,230.93,230.87,24.28235278]
[1759717351878,1.2484954,230.94,230.87,24.28235278]
[1759717355075,7.81,230.93,230.87,20.38535278]
[1759717355274,7.81,230.9,230.83,7.34]
[1759717357874,7.81,230.9,230.83,11.2377]
[1759717358070,1.2484954,230.91,230.83,11.2377]
[1759717359472,1.2484954,230.91,230.83,24.22648026]
[1759717360381,1.2484954,230.91,230.84,7.34]
[1759717360679,1.2484954,230.97,230.86,7.34]
[1759717361176,1.2484954,230.97,230.9,7.34]
[1759717364777,7.81,230.98,230.9,7.34]
[1759717364778,7.81,230.98,230.91,3.8964]
[1759717364978,7.81,231.03,230.92,7.34]
[1759717365184,4.22300116,231.02,230.92,7.34]
[1759717366380,4.22300116,231.02,230.94,7.34]
[1759717367877,7.91,231.01,230.91,1.2484954]
[1759717368070,7.91,231.01,230.91,7.99]
[1759717368274,2.97605861,231.0,230.91,11.8862]
[1759717368678,2.97605861,231.0,230.91,7.99]
[1759717369384,2.97605861,231.0,230.94,7.99]
[1759717369875,2.97605861,231.0,230.95,3.8956]
[1759717370182,2.97605861,231.03,230.96,7.99]
[1759717373284,7.91,231.0,230.96,7.99]
[1759717373884,7.91,231.0,230.94,7.99]
[1759717374087,7.91,231.0,230.94,11.8858]
[1759717374280,1.2484954,231.01,230.94,11.8858]
[1759717374979,1.2484954,231.01,230.94,7.99]
[1759717375182,9.1584954,231.01,230.94,7.99]
[1759717375484,2.97633112,231.0,230.94,7.99]
[1759717378590,2.97633112,231.0,230.94,11.8859]
[1759717379988,2.97633112,231.0,230.94,7.99]
[1759717380185,1.2484954,230.95,230.85,7.99]
[1759717380392,9.1584954,230.95,230.85,7.99]
[1759717380590,1.2484954,230.92,230.85,7.99]
[1759717381185,1.2484954,230.92,230.85,11.8873]
[1759717381586,9.1584954,230.92,230.85,7.99]
[1759717382189,1.2484954,230.92,230.85,7.99]
[1759717382688,1.2484954,230.92,230.86,3.8972]
[1759717382889,4.22311519,230.95,230.87,7.99]
[1759717383277,1.2484954,230.92,230.87,7.99]
[1759717383484,7.91,230.91,230.87,7.99]
[1759717383691,1.2484954,230.92,230.84,7.99]
[1759717384588,1.2484954,230.92,230.85,3.8972]
[1759717385090,7.91,230.95,230.85,3.8972]
[1759717385492,2.98887066,230.94,230.84,7.99]
[1759717386085,7.91,230.93,230.84,7.99]
[1759717386884,7.91,230.97,230.84,7.99]
[1759717387090,2.98723316,230.96,230.84,7.99]
[1759717387986,7.91,230.95,230.84,7.99]
[1759717388191,9.86037272,230.93,230.84,7.99]
[1759717388891,7.91,230.93,230.84,7.99]
[1759717389589,7.91,230.93,230.84,11.8874]
[1759717389786,7.91,230.93,230.83,12.85201312]
[1759717389787,7.91,230.93,230.85,7.99]
[1759717389992,315.06,231.06,230.85,7.99]
[1759717389993,7.91,230.98,230.85,7.99]
[1759717390292,7.91,231.03,230.92,7.99]
[1759717390492,2.98716197,231.02,230.92,7.99]
[1759717390693,2.98716197,231.02,230.93,3.8961]
[1759717391392,2.98716197,231.02,230.92,7.99]
[1759717397108,2.98716197,231.02,230.92,11.8862]
[1759717397407,2.98716197,231.02,230.93,7.99]
[1759717397603,7.91,231.08,230.98,3.8952]
[1759717397808,2.98604974,231.07,230.99,7.91]
[1759717398010,8.05,231.13,230.99,7.91]
[1759717398206,2.98672762,231.12,230.99,7.91]
[1759717398406,8.05,231.13,230.99,7.91]
[1759717398606,2.98481617,231.12,230.99,7.91]
[1759717399616,2.98481617,231.12,231.02,3.8945]
[1759717399804,2.98481617,231.12,231.03,7.91]
[1759717400307,8.05,231.15,231.01,7.91]
[1759717400610,2.98143687,231.14,231.01,7.91]
[1759717401606,2.98143687,231.14,231.03,3.8943]
[1759717401807,2.98143687,231.14,231.04,7.91]
[1759717402409,8.05,231.15,231.06,7.91]
[1759717403109,8.05,231.15,231.07,3.8937]
[1759717403308,8.05,231.15,231.03,60.5787]
[1759717403309,37.48037272,231.19,231.08,7.91]
[1759717403907,8.05,231.17,231.08,7.91]
[1759717404303,8.05,231.17,231.08,20.77182568]
[1759717404508,8.05,231.17,231.08,7.91]
[1759717406018,8.05,231.17,231.09,3.8934]
[1759717406208,8.05,231.17,231.1,7.91]
[1759717406411,8.05,231.21,231.1,7.91]
[1759717407915,11.9414,231.21,231.1,7.91]
[1759717408617,1.95037272,231.18,231.1,7.91]
[1759717408917,8.05,231.17,231.1,7.91]
[1759717412920,3.8912,231.23,231.1,11.8032]
[1759717413224,7.61,231.2,231.11,7.91]
[1759717414619,1.95037272,231.17,231.08,12.93468043]
[1759717414926,7.61,231.16,231.07,7.93]
[1759717416221,7.61,231.16,231.07,21.15054701]
[1759717420026,7.61,231.08,230.97,7.93]
[1759717420423,3.8937,231.07,230.97,7.93]
[1759717420831,1.95037272,231.05,230.97,7.93]
[1759717421129,9.56037272,231.05,230.97,7.93]
[1759717421927,7.61,231.05,230.97,7.93]
[1759717422730,7.61,231.05,230.97,20.60712365]
[1759717423029,7.61,231.05,230.97,7.93]
[1759717425925,3.8934,231.09,230.97,7.93]
[1759717426130,116.22037272,231.1,230.97,7.93]
[1759717426331,7.61,231.1,230.98,7.93]
[1759717427736,13.45357272,231.1,230.98,7.93]
[1759717428332,3.8936,231.08,230.98,7.93]
[1759717428637,7.95,231.07,230.98,7.93]
[1759717428834,7.95,231.21,231.0,9.91037272]
[1759717429038,1.95037272,231.25,231.08,1.95037272]
[1759717429228,7.95,231.26,231.11,7.96]
[1759717429632,7.95,231.26,231.12,3.8929]
[1759717429835,7.95,231.26,231.15,7.96]
[1759717430237,7.95,231.32,231.15,7.96]
[1759717430434,7.95,231.32,231.17,3.892]
[1759717430634,7.95,231.32,231.18,7.96]
[1759717431035,7.95,231.28,231.18,7.96]
[1759717433144,7.95,231.28,231.18,11.8518]
[1759717433344,7.95,231.28,231.18,7.96]
[1759717435741,7.95,231.28,231.11,1.95037272]
[1759717435742,7.95,231.23,231.11,7.96]
[1759717435945,9.90037272,231.2,231.11,7.96]
[1759717438041,7.95,231.2,231.11,7.96]
[1759717443148,7.95,231.27,231.15,7.96]
[1759717443844,3.8907,231.26,231.15,7.96]
[1759717444145,7.95,231.27,231.17,7.96]
[1759717447551,7.95,231.27,231.19,7.96]
[1759717447751,22.4,231.3,231.19,9.20456835]
[1759717448253,30.35,231.3,231.19,9.20456835]
[1759717448946,30.35,231.3,231.19,13.09616835]
[1759717450554,1.24456835,231.29,231.19,9.20456835]
[1759717450757,7.95,231.28,231.19,7.96]
[1759717453456,7.95,231.28,231.19,9.20456835]
[1759717453653,7.95,231.26,231.19,7.96]
[1759717453857,7.95,231.26,231.16,1.24456835]
[1759717455064,7.95,231.26,231.17,3.892]
[1759717455266,7.95,231.26,231.18,7.96]
[1759717458966,7.75,231.36,231.23,1.24456835]
[1759717459165,7.75,231.36,231.27,7.79]
[1759717460064,7.75,231.36,231.29,1.24456835]
[1759717460264,7.75,231.36,231.29,14.21788734]
[1759717460471,7.75,231.36,231.29,1.24456835]
[1759717460668,7.75,231.36,231.29,5.13446835]
[1759717461370,7.75,231.36,231.27,7.79]
[1759717461770,7.75,231.36,231.28,3.8902]
[1759717462468,7.75,231.36,231.3,3.8898]
[1759717463169,7.75,231.36,231.29,14.39365161]
[1759717463375,7.75,231.36,231.29,1.24456835]
[1759717463875,7.75,231.36,231.27,11.6802]
[1759717463876,1.24456835,231.32,231.27,12.97703566]
[1759717464172,7.75,231.28,231.19,34.32339044]
[1759717464382,8.99456835,231.25,231.19,34.32339044]
[1759717464970,8.99456835,231.25,231.15,3.8923]
[1759717465174,7.75,231.25,231.15,3.8923]
[1759717465567,7.75,231.25,231.17,3.892]
[1759717465772,7.75,231.25,231.14,7.79]
[1759717465970,7.75,231.25,231.14,20.57194063]
[1759717466175,7.75,231.25,231.14,7.79]
[1759717466571,7.75,231.25,231.14,11.6824]
[1759717466775,7.75,231.25,231.14,7.79]
[1759717467277,7.75,231.25,231.14,20.8327096]
[1759717468073,18.48,231.29,231.14,13.0427096]
[1759717468273,7.75,231.28,231.11,7.79]
[1759717469473,7.75,231.25,231.12,3.8928]
[1759717470774,3.8908,231.24,231.12,13.08147351]
[1759717470975,2.99260662,231.25,231.11,7.79]
[1759717470976,7.75,231.23,231.11,7.79]
[1759717472678,7.75,231.24,231.11,7.79]
[1759717473982,7.75,231.24,231.11,20.55415689]
[1759717474175,7.73,231.24,231.11,20.55415689]
[1759717474375,6.88340662,231.25,231.11,20.55415689]
[1759717474575,7.73,231.24,231.11,20.55415689]
[1759717474872,7.73,231.22,231.11,20.55415689]
[1759717475174,3.891,231.23,231.11,20.55415689]
[1759717475878,7.73,231.22,231.11,20.55415689]
[1759717476079,3.891,231.23,231.11,20.55415689]
[1759717476382,7.73,231.2,231.11,20.55415689]
[1759717477178,3.8914,231.21,231.11,20.55415689]
[1759717477382,7.73,231.18,231.11,12.76415689]
[1759717477683,7.73,231.18,231.08,5.69293164]
[1759717478083,7.73,231.18,231.08,18.97908426]
[1759717480583,26.58,231.18,231.08,13.28615262]
[1759717480779,7.73,231.17,231.03,7.65]
[1759717481086,7.73,231.14,230.99,7.65]
[1759717482279,3.8934,231.1,230.99,7.65]
[1759717482480,7.73,231.09,230.99,7.65]
[1759717482888,7.73,231.05,230.97,13.05101116]
[1759717483088,7.73,231.05,230.94,7.65]
[1759717485385,11.6241,231.05,230.94,20.41576252]
[1759717485588,7.73,231.05,230.94,7.65]
[1759717485794,3.8951,230.99,230.88,7.65]
[1759717486087,11.6251,230.99,230.88,7.65]
[1759717486998,1.24798416,230.96,230.88,7.65]
[1759717488790,8.97798416,230.99,230.88,7.65]
[1759717489701,8.97798416,230.99,230.88,11.5469]
[1759717489999,8.97798416,230.99,230.88,7.65]
[1759717491402,7.74,230.95,230.88,7.65]
[1759717497600,7.74,230.89,230.83,13.17843541]
[1759717497805,7.74,230.86,230.8,7.51]
[1759717500804,7.74,230.91,230.8,12.7150431]
[1759717501101,1.24798416,230.95,230.84,1.24798416]
[1759717501306,1.24798416,230.95,230.85,7.51]
[1759717501501,1.24798416,230.92,230.81,1.24798416]
[1759717501706,8.98798416,230.92,230.82,7.51]
[1759717501917,1.24798416,230.95,230.82,7.51]
[1759717503209,7.74,230.96,230.85,7.51]
[1759717503404,8.98798416,231.0,230.88,7.51]
[1759717503607,8.98798416,231.0,230.91,7.51]
[1759717504203,1.24798416,230.97,230.86,7.51]
[1759717504498,1.24798416,230.91,230.81,7.51]
[1759717504810,1.24798416,230.88,230.81,7.51]
[1759717505108,7.74,230.9,230.81,7.51]
[1759717507114,105.44,230.91,230.81,7.51]
[1759717508119,7.74,230.9,230.76,7.51]
[1759717508709,7.74,230.9,230.78,3.8986]
[1759717508904,7.74,230.9,230.79,7.51]
[1759717511006,7.74,230.88,230.79,7.51]
[1759717511607,7.74,230.85,230.74,7.51]
[1759717512210,3.8976,230.84,230.74,7.51]
[1759717512405,7.74,230.83,230.69,7.51]
[1759717512804,3.8979,230.82,230.69,11.41]
[1759717513508,7.74,230.91,230.77,3.8988]
[1759717513712,7.74,230.89,230.77,7.51]
[1759717514111,11.6368,230.89,230.77,7.51]
[1759717514414,7.74,230.89,230.77,7.51]
[1759717514611,115.26,230.89,230.77,7.51]
[1759717514813,7.74,230.89,230.79,3.8984]
[1759717515007,7.74,230.89,230.8,7.51]
[1759717519420,3.8957,230.96,230.8,7.51]
[1759717519719,107.42,230.91,230.8,7.51]
[1759717520020,114.98,230.91,230.8,7.51]
[1759717523122,3.8966,230.9,230.8,7.51]
[1759717525216,114.98,230.91,230.8,7.51]
[1759717527924,7.56,230.88,230.74,7.95]
[1759717528721,1.9511098,230.85,230.74,7.95]
[1759717528920,58.9,230.84,230.74,7.95]
[1759717531120,100.28,230.84,230.75,3.8991]
[1759717532820,100.28,230.84,230.74,7.95]
[1759717536140,7.55,230.91,230.8,7.36]
[1759717537836,7.55,230.91,230.8,11.2583]
[1759717539640,7.55,230.91,230.82,3.8979]
[1759717540338,7.55,230.91,230.8,7.36]
[1759717543636,7.55,230.91,230.81,3.8981]
[1759717543838,7.55,230.95,230.8,7.36]
[1759717544237,7.55,230.95,230.81,7.36]
[1759717544644,7.55,230.95,230.84,3.8974]
[1759717544945,7.55,230.95,230.85,7.36]
[1759717545241,7.55,230.95,230.86,3.8972]
[1759717546745,7.55,230.95,230.85,7.36]
[1759717550640,7.55,230.95,230.83,3.8976]
[1759717550844,1.9511098,230.89,230.79,4.82710363]
[1759717551047,7.64,230.87,230.77,7.74]
[1759717551841,7.64,230.87,230.75,4.82710363]
[1759717552247,7.64,230.87,230.75,8.72620363]
[1759717552444,7.64,230.87,230.76,7.74]
[1759717552636,115.0,230.87,230.76,7.74]
[1759717553648,7.64,230.84,230.73,4.82710363]
[1759717553842,7.64,230.84,230.72,16.46670363]
[1759717555549,7.64,230.84,230.75,7.74]
[1759717566249,3.898,230.82,230.71,7.74]
[1759717566457,1.9511098,230.85,230.71,7.74]
[1759717566458,7.64,230.81,230.71,7.74]
[1759717567158,1.24968752,230.8,230.71,7.74]
[1759717567553,1.24968752,230.8,230.71,11.6398]
[1759717569257,1.24968752,230.8,230.71,7.74]
[1759717569555,167.8632,230.87,230.71,7.74]
[1759717569556,1.24968752,230.77,230.71,7.74]
[1759717573358,7.64,230.79,230.71,7.74]
[1759717573566,8.88968752,230.79,230.71,7.74]
[1759717573972,8.88968752,230.79,230.71,11.6396]
[1759717575263,7.64,230.87,230.73,60.6579]
[1759717575465,375.8622,230.95,230.73,60.6579]
[1759717575466,5.28686976,230.88,230.74,7.74]
[1759717575759,5.28686976,230.88,230.77,7.74]
[1759717576561,2.97352821,230.89,230.77,7.74]
[1759717576771,1.24968752,230.93,230.83,1.24968752]
[1759717577064,1.24968752,230.93,230.84,7.74]
[1759717577254,2.97407685,230.94,230.86,7.74]
[1759717577460,63.74,230.98,230.86,8.98968752]
[1759717578367,63.74,230.98,230.89,8.02]
[1759717579265,1.24968752,230.99,230.89,8.02]
[1759717579866,7.62,230.98,230.89,8.02]
[1759717581064,7.62,230.98,230.89,11.9167]
[1759717582263,1.24968752,230.97,230.89,8.02]
[1759717583970,1.24968752,230.94,230.84,8.02]
[1759717584164,1.24968752,230.95,230.84,8.02]
[1759717584365,1.24968752,230.95,230.86,8.02]
[1759717586867,7.62,230.96,230.86,8.02]
[1759717586868,7.62,230.96,230.86,9.26968752]
[1759717587867,7.62,230.96,230.86,8.02]
[1759717588069,7.62,230.93,230.82,11.9178]
[1759717589076,7.62,231.0,230.88,8.02]
[1759717589276,8.86968752,231.0,230.88,8.02]
[1759717589476,8.86968752,231.0,230.9,5.14618752]
[1759717589668,7.62,231.0,230.91,8.02]
[1759717591671,8.86968752,231.0,230.91,8.02]
[1759717592775,8.86968752,231.0,230.91,21.07570091]
[1759717595774,8.86968752,231.0,230.91,24.97210091]
[1759717599584,115.76968752,231.0,230.91,24.97210091]
[1759717599775,8.86968752,231.0,230.91,24.97210091]
[1759717599981,106.9,230.99,230.91,24.97210091]
[1759717600176,7.62,231.0,230.92,7.69]
[1759717600377,106.9,230.99,230.92,7.69]
[1759717603088,7.95,230.97,230.88,7.69]
[1759717604082,7.95,230.94,230.88,7.69]
[1759717605682,7.95,230.94,230.88,20.44609277]
[1759717607989,7.95,230.94,230.82,1.24968752]
[1759717608185,7.93,230.91,230.83,7.66]
[1759717608393,60.594,230.98,230.79,7.66]
[1759717608394,7.93,230.88,230.79,7.66]
[1759717608587,32.89,230.88,230.79,7.66]
[1759717609182,1.24968752,230.86,230.79,20.71989808]
[1759717609387,1.24968752,230.86,230.79,7.66]
[1759717610190,7.93,230.85,230.79,7.66]
[1759717612196,7.93,230.85,230.79,20.67182165]
[1759717613595,49.17,230.84,230.8,7.66]
[1759717614198,88.35,230.84,230.8,7.66]
[1759717616103,7.93,230.83,230.8,7.66]
[1759717616604,7.93,230.91,230.8,7.66]
[1759717616794,114.85,230.91,230.82,7.66]
[1759717617804,7.93,230.91,230.82,7.66]
[1759717618006,12.74,230.92,230.85,7.66]
[1759717619397,7.93,230.91,230.85,7.66]
[1759717620008,7.93,230.91,230.81,11.5579]
[1759717620799,7.93,230.89,230.81,7.66]
[1759717623803,1.24968752,230.87,230.79,13.02961397]
[1759717624007,7.93,230.86,230.77,7.66]
[1759717624912,1.24968752,230.84,230.77,7.66]
[1759717627314,24.58968752,230.84,230.77,20.42347249]
[1759717627715,1.24968752,230.84,230.77,20.42347249]
[1759717628015,23.88968752,230.84,230.77,20.42347249]
[1759717628915,7.93,230.83,230.77,20.42347249]
[1759717630516,7.93,230.83,230.77,12.76347249]
[1759717630721,7.93,230.83,230.73,17.36729821]
[1759717631620,7.93,230.83,230.73,13.46799821]
[1759717632817,7.93,230.83,230.76,7.66]
[1759717635617,7.93,230.83,230.76,20.68780421]
[1759717641216,1.9523337,230.85,230.77,8.04]
[1759717641419,1.9523337,230.95,230.77,8.04]
[1759717641623,45.52,230.94,230.77,8.04]
[1759717641824,7.4,230.92,230.77,8.04]
[1759717642821,7.4,230.92,230.83,8.04]
[1759717643918,38.12,230.94,230.77,8.04]
[1759717644222,7.4,230.9,230.77,8.04]
[1759717644819,1.9523337,230.87,230.77,8.04]
[1759717645124,7.4,230.86,230.77,8.04]
[1759717645518,7.4,230.86,230.77,11.9386]
[1759717645713,7.4,230.86,230.77,8.04]